fUSD/lending_fUSD_20240608
["ID","MTS","AMOUNT","RATE_DAILY","PERIOD"]
[328849710,1717877435102,-151.16,0.0002999,2]
[328849711,1717877435113,-151.16,0.0002999,2]
[328849712,1717877435124,-151.16,0.0002999,2]
[328849713,1717877435136,-151.16,0.0002999,2]
[328849714,1717877435146,-151.16,0.0002999,2]
[328849715,1717877435157,-151.16,0.0002999,2]
[328849716,1717877435170,-151.16,0.0002999,2]
[328849717,1717877435180,-151.16,0.0002999,2]
[328849718,1717877435190,-151.16,0.0002999,2]
[328849719,1717877435201,-151.16,0.0002999,2]
[328849720,1717877435211,-151.16,0.0002999,2]
[328849721,1717877435221,-151.16,0.0002999,2]
[328849722,1717877435231,-151.16,0.0002999,2]
[328849723,1717877435241,-151.16,0.0002999,2]
[328849724,1717877435252,-151.16,0.0002999,2]
[328849725,1717877435262,-151.16,0.0002999,2]
[328849726,1717877435272,-151.16,0.0002999,2]
[328849727,1717877435282,-151.16,0.0002999,2]
[328849728,1717877435293,-502.96418518,0.00029998,4]
[328849729,1717877435305,-500.0,0.00029998,4]
[328849730,1717877435315,-503.70396342,0.00029998,4]
[328849731,1717877435326,-10963.29668548,0.00029998,2]
[328849732,1717877435337,-501.87440826,0.00029998,4]
[328849733,1717877435347,-506.2360547,0.00029998,4]
[328849734,1717877435357,-155.0,0.00029998,2]
[328849735,1717877435368,-506.64833036,0.00029998,2]
[328849736,1717877435379,-525.22812032,0.00029998,2]
[328849737,1717877435390,-155.0,0.00029998,2]
[328849738,1717877435400,-185.18873139,0.00029998,2]
[328849739,1717877435411,-338.49898174,0.00029998,2]
[328849740,1717877435422,-282.01697371,0.00029998,2]
[328849741,1717877435433,-490.33394814,0.00029998,2]
[328849742,1717877435443,-201.57961596,0.00029998,2]
[328849743,1717877435454,-2006.99717582,0.00029998,2]
[328849744,1717877435465,-155.0,0.00029998,2]
[328849745,1717877435475,-307.31586984,0.00029998,2]
[328849746,1717877435486,-645.50901128,0.00029998,2]
[328849747,1717877435497,-327.03263673,0.00029998,2]
[328849748,1717877435507,-1052.85767216,0.00029998,2]
[328849749,1717877435519,-209.41336991,0.00029998,2]
[328849750,1717877435530,-155.0,0.00029998,2]
[328849751,1717877435542,-1391.47819964,0.00029998,2]
[328849752,1717877435553,-796.89912787,0.00029998,2]
[328849753,1717877435563,-155.0,0.00029998,2]
[328849754,1717877435574,-931.79955074,0.00029998,2]
[328849755,1717877435585,-3063.72776014,0.00029999,2]
[328849756,1717877435596,-320.44987779,0.00029999,2]
[328849757,1717877435606,-500.0,0.00029999,4]
[328849758,1717877435617,-500.0,0.00029999,4]
[328849759,1717877435628,-500.0,0.00029999,4]
[328849760,1717877435638,-500.0,0.00029999,4]
[328849761,1717877435649,-500.0,0.00029999,4]
[328849762,1717877435660,-500.0,0.00029999,4]
[328849763,1717877435670,-500.0,0.00029999,4]
[328849764,1717877435680,-515.65,0.00029999,4]
[328849765,1717877435690,-500.0,0.00029999,4]
[328849766,1717877435709,-500.0,0.00029999,4]
[328849767,1717877435722,-513.33468549,0.00029999,4]
[328849768,1717877435734,-500.0,0.00029999,4]
[328849769,1717877435745,-506.13901555,0.00029999,4]
[328849770,1717877435756,-2018.72603561,0.00029999,30]
[328849771,1717877435769,-214.23321484,0.0003,30]
[328849772,1717877435780,-56943.14282576,0.0003,13]
[328849773,1717877435791,-73518.2507881,0.0003,2]
[328849774,1717877435809,-6708.98505484,0.0003,2]
[328849775,1717877435824,-2542.68157995,0.0003,2]
[328849779,1717877439306,-250.00562901,0.0003,5]
[328849780,1717877439318,-13913.794371,0.0003,2]
[328849781,1717877439330,-1700.0,0.0003,2]
[328849782,1717877439377,-881.03946832,0.0003,2]
[328849783,1717877439445,-20726.28901298,0.0003,2]
[328849823,1717877442678,-2431.855,0.0003,2]
[328849824,1717877442965,-7064.20000001,0.0003,2]
[328849846,1717877443496,-422.8334125,0.0003,2]
[328849856,1717877443588,-427.84543749,0.0003,2]
[328849858,1717877443601,-14155.38201397,0.0003,2]
[328849860,1717877443613,-428.30598792,0.0003,2]
[328849863,1717877443625,-17192.73589717,0.0003,2]
[328849891,1717877443905,-281.7500035,0.0003,2]
[328849893,1717877443917,-1550.46717167,0.0003,2]
[328849895,1717877443931,-4898.6944669,0.0003,2]
[328849947,1717877446717,-217.22567813,0.00029999,2]
[328849948,1717877446728,-4218.56827082,0.0003,2]
[328849952,1717877447345,-475.24593431,0.00029999,2]
[328849953,1717877447360,-656.18584456,0.00029999,2]
[328849954,1717877447372,-907.72415544,0.0003,2]
[328849968,1717878435136,-378.83116364,0.00016644,2]
[328849969,1717878435161,-150.0,0.00016743,2]
[328849970,1717878435185,-2088.33865607,0.00016744,2]
[328849981,1717878631868,-4266.12013758,0.00016644,2]
[328849982,1717878631879,-1680.41046338,0.00016644,2]
[328849983,1717878631892,-1184.46578941,0.00016644,2]
[328849984,1717878631934,-1578.4298077,0.00016644,2]
[328849985,1717878631945,-3697.2336923,0.00016645,2]
[328849986,1717878632184,-35408.1301,0.00016645,2]
[328849987,1717878632251,-14051.1,0.00016645,2]
[328849988,1717878632317,-530.01792,0.00016645,2]
[328849989,1717878632385,-263.744,0.00016645,2]
[328849999,1717878637894,-1234.44430153,0.00016645,2]
[328850000,1717878637983,-1473.46329449,0.00016645,2]
[328850001,1717878638073,-500.0,0.00016645,2]
[328850002,1717878638450,-42963.81317668,0.00016645,2]
[328850003,1717878638460,-151.39412324,0.00016645,2]
[328850004,1717878638471,-761.32227151,0.00016734,2]
[328850005,1717878638483,-150.0,0.00016743,2]
[328850006,1717878638493,-23211.20975948,0.00016744,2]
[328850007,1717878638506,-2125.34602237,0.00016744,2]
[328850008,1717878638519,-351.26367918,0.00016744,2]
[328850009,1717878638532,-4852.03073303,0.00016744,2]
[328850010,1717878638577,-15156.26668837,0.00016744,2]
[328850011,1717878638591,-901.3376186,0.00016744,2]
[328850012,1717878638604,-1559.97189616,0.00016744,2]
[328850013,1717878638660,-2885.02357511,0.00016744,2]
[328850026,1717878641076,-155.0,0.00016644,2]
[328850027,1717878641086,-627.30273728,0.00016744,2]
[328850028,1717878641140,-3812.46253125,0.00016744,2]
[328850029,1717878641153,-14066.07499997,0.00016744,2]
[328850030,1717878641205,-6562.26994772,0.00016744,2]
[328850031,1717878641218,-1096.04159675,0.00016744,2]
[328850032,1717878641230,-5428.10759271,0.00016744,2]
[328850033,1717878641414,-5000.0,0.00016744,2]
[328850034,1717878641549,-25720.88611237,0.00016744,2]
[328850035,1717878641623,-705.3,0.00016744,2]
[328850036,1717878641637,-865.43927189,0.00016744,2]
[328850037,1717878641650,-1852.95989709,0.00016744,2]
[328850038,1717878641663,-13894.00000001,0.00016744,2]
[328850039,1717878641676,-1403.26,0.00016744,2]
[328850040,1717878641713,-21855.33865322,0.00016744,2]
[328850043,1717878643463,-810.84031888,0.00016744,2]
[328850044,1717878643476,-2604.18085478,0.00016744,2]
[328850045,1717878643488,-514.82885903,0.00016744,2]
[328850046,1717878643501,-1308.00000413,0.00016744,2]
[328850047,1717878643512,-463.80189035,0.00016744,2]
[328850048,1717878643565,-400.70588266,0.00016744,2]
[328850080,1717878646010,-259.44000584,0.00016744,2]
[328850082,1717878646024,-40632.80179743,0.00016744,2]
[328850084,1717878646034,-390.01930603,0.00016744,2]
[328850085,1717878646045,-1208.55312823,0.00016744,2]
[328850086,1717878646055,-3511.0464,0.00016744,2]
[328850087,1717878646065,-169.8128533,0.00016745,2]
[328850088,1717878646075,-153.94726762,0.0001716,2]
[328850089,1717878646085,-9218.34088716,0.00017259,2]
[328850090,1717878646095,-150.99,0.00017259,2]
[328850091,1717878646105,-7409.01,0.00017259,2]
[328850092,1717878646115,-3816.34338884,0.0001726,2]
[328850093,1717878646127,-1039.42928046,0.0001726,2]
[328850094,1717878646139,-572.85,0.0001726,2]
[328850095,1717878646151,-1806.68199,0.0001726,2]
[328850096,1717878646163,-2764.6853407,0.0001726,2]
[328850097,1717878646173,-5929.76,0.00017534,2]
[328850098,1717878646183,-150.99,0.00017534,2]
[328850099,1717878646193,-499.99,0.00017534,2]
[328850100,1717878646203,-1557.96,0.00017534,2]
[328850101,1717878646213,-4510.54,0.00017534,2]
[328850102,1717878646223,-9999.99,0.00017534,2]
[328850103,1717878646233,-242.22,0.00017808,2]
[328850104,1717878646243,-553.52,0.00018418,2]
[328850105,1717878646253,-184.11,0.00018418,2]
[328850106,1717878646264,-153.94726761,0.00019283,2]
[328850107,1717878646278,-154.9,0.00019451,2]
[328850108,1717878646287,-153.94726761,0.00021407,2]
[328850109,1717878646298,-169.81285329,0.00023273,2]
[328850110,1717878646309,-153.94726761,0.0002353,2]
[328850111,1717878646319,-326.4,0.00024384,2]
[328850112,1717878646329,-162.53,0.00024384,2]
[328850113,1717878646338,-165.69,0.00024384,2]
[328850114,1717878646349,-424.79,0.00024662,2]
[328850115,1717878646359,-153.94726761,0.00025653,2]
[328850116,1717878646369,-500.0,0.00025727,2]
[328850117,1717878646379,-250.0,0.00025727,2]
[328850118,1717878646389,-622.73,0.00026113,2]
[328850119,1717878646399,-432.6,0.00026113,2]
[328850120,1717878646410,-152.95240826,0.00026158,2]
[328850121,1717878646420,-152.95240826,0.00026182,2]
[328850122,1717878646430,-152.95240826,0.0002625,2]
[328850123,1717878646441,-2751.0,0.00026262,2]
[328850124,1717878646451,-466.06,0.00026382,2]
[328850125,1717878646460,-250.0,0.00026408,2]
[328850126,1717878646471,-152.95240826,0.00026454,2]
[328850127,1717878646481,-2361.38,0.00026473,2]
[328850128,1717878646491,-430.87,0.00026485,2]
[328850129,1717878646501,-150.0,0.00026546,2]
[328850130,1717878646511,-152.95240826,0.00026593,2]
[328850131,1717878646521,-155.0,0.00026596,2]
[328850132,1717878646531,-900.0,0.00026638,2]
[328850133,1717878646541,-900.0,0.00026711,2]
[328850134,1717878646551,-152.95240826,0.00026766,2]
[328850135,1717878646561,-900.0,0.00026784,2]
[328850136,1717878646573,-200.0,0.00026797,2]
[328850137,1717878646584,-152.95240826,0.00026808,2]
[328850138,1717878646594,-152.95240826,0.00026834,2]
[328850139,1717878646605,-3750.35,0.0002685,2]
[328850140,1717878646615,-900.0,0.00026857,2]
[328850141,1717878646625,-152.95240826,0.00026881,2]
[328850142,1717878646636,-152.95240826,0.00026917,2]
[328850143,1717878646646,-424.79,0.00026926,2]
[328850144,1717878646656,-900.0,0.0002693,2]
[328850146,1717878646667,-900.0,0.00027003,2]
[328850147,1717878646677,-500.0,0.00027008,2]
[328850148,1717878646687,-171.72,0.00027047,2]
[328850149,1717878646698,-900.0,0.00027076,2]
[328850150,1717878646708,-900.0,0.00027149,2]
[328850151,1717878646718,-900.0,0.00027222,2]
[328850152,1717878646730,-900.0,0.00027295,2]
[328850153,1717878646740,-900.0,0.00027368,2]
[328850154,1717878646750,-8042.49,0.00027397,2]
[328850155,1717878646761,-900.0,0.00027441,2]
[328850156,1717878646771,-900.0,0.00027514,2]
[328850157,1717878646782,-152.95240826,0.00027534,2]
[328850158,1717878646792,-155.61412595,0.0002754,2]
[328850159,1717878646802,-900.0,0.00027587,2]
[328850160,1717878646812,-1000.0,0.00027604,2]
[328850161,1717878646823,-900.0,0.00027661,2]
[328850162,1717878646834,-900.0,0.00027734,2]
[328850163,1717878646843,-153.94726761,0.00027777,2]
[328850164,1717878646854,-900.0,0.00027807,2]
[328850165,1717878646864,-900.0,0.0002788,2]
[328850166,1717878646875,-900.0,0.00027953,2]
[328850167,1717878646885,-900.0,0.00028026,2]
[328850168,1717878646896,-152.95240826,0.00028039,2]
[328850169,1717878646906,-153.94527055,0.00028414,2]
[328850170,1717878646916,-164.03435616,0.00028498,7]
[328850171,1717878646927,-155.61412595,0.00028707,2]
[328850172,1717878646937,-152.95240826,0.00028726,2]
[328850173,1717878646947,-152.95240826,0.00028896,2]
[328850174,1717878646958,-152.95240826,0.00028971,2]
[328850175,1717878646969,-168.98,0.00029068,2]
[328850176,1717878646980,-466.06,0.00029122,2]
[328850177,1717878646990,-424.79,0.0002919,2]
[328850178,1717878647000,-152.95240826,0.00029261,2]
[328850179,1717878647010,-152.95240826,0.00029334,2]
[328850180,1717878647020,-172.08,0.00029382,2]
[328850181,1717878647031,-152.95240826,0.0002966,2]
[328850182,1717878647041,-157.060905,0.00029798,18]
[328850183,1717878647051,-157.060905,0.00029798,16]
[328850184,1717878647061,-165.060905,0.00029798,14]
[328850185,1717878647072,-1000.0,0.000298,2]
[328850186,1717878647083,-169.81285329,0.000298,2]
[328850187,1717878647093,-199.060905,0.00029898,18]
[328850188,1717878647104,-199.060905,0.00029898,14]
[328850189,1717878647114,-199.060905,0.00029898,16]
[328850190,1717878647124,-118333.76700539,0.00029899,2]
[328850191,1717878647134,-3018.05355732,0.000299,7]
[328850192,1717878647144,-4457.68682016,0.000299,2]
[328850193,1717878647155,-166.51202761,0.000299,2]
[328850194,1717878647165,-238.42303214,0.000299,2]
[328850195,1717878647175,-933.12524895,0.000299,2]
[328850196,1717878647185,-998.34,0.000299,2]
[328850197,1717878647195,-153.94726761,0.000299,2]
[328850198,1717878647205,-177.60436151,0.0002999,2]
[328850199,1717878647215,-152.0,0.0002999,2]
[328850200,1717878647225,-152.0,0.0002999,2]
[328850201,1717878647235,-152.0,0.0002999,2]
[328850202,1717878647245,-152.0,0.0002999,2]
[328850203,1717878647256,-263.71348611,0.00029998,2]
[328850204,1717878647271,-2193.12420193,0.00029998,2]
[328850205,1717878647281,-208.07331361,0.00029998,2]
[328850206,1717878647291,-539.64542846,0.00029998,2]
[328850207,1717878647303,-718.98896664,0.00029998,2]
[328850208,1717878647313,-489.5685208,0.00029998,2]
[328850209,1717878647326,-205.15281241,0.00029998,2]
[328850210,1717878647336,-7535.89289453,0.00029998,2]
[328850211,1717878647347,-318.98174811,0.00029998,2]
[328850212,1717878647357,-185.99482265,0.00029998,2]
[328850213,1717878647367,-156.65432858,0.00029998,2]
[328850214,1717878647378,-317.57810067,0.00029998,2]
[328850215,1717878647388,-35465.53151691,0.00029998,2]
[328850216,1717878647397,-4443.30606049,0.00029998,2]
[328850217,1717878647407,-259.77671669,0.00029999,4]
[328850218,1717878647416,-228.45637,0.00029999,2]
[328850219,1717878647426,-500.0,0.00029999,4]
[328850220,1717878647435,-500.0,0.00029999,4]
[328850221,1717878647445,-500.0,0.00029999,4]
[328850222,1717878647455,-500.0,0.00029999,4]
[328850223,1717878647464,-500.0,0.00029999,4]
[328850224,1717878647474,-500.0,0.00029999,4]
[328850225,1717878647484,-500.0,0.00029999,4]
[328850226,1717878647493,-500.0,0.00029999,4]
[328850227,1717878647503,-500.0,0.00029999,4]
[328850228,1717878647512,-500.0,0.00029999,4]
[328850229,1717878647522,-500.0,0.00029999,4]
[328850230,1717878647532,-500.0,0.00029999,4]
[328850231,1717878647542,-500.0,0.00029999,4]
[328850232,1717878647552,-500.0,0.00029999,4]
[328850233,1717878647562,-500.0,0.00029999,4]
[328850234,1717878647573,-500.0,0.00029999,4]
[328850235,1717878647583,-500.0,0.00029999,4]
[328850236,1717878647593,-500.0,0.00029999,4]
[328850237,1717878647603,-500.0,0.00029999,4]
[328850238,1717878647612,-500.0,0.00029999,4]
[328850239,1717878647622,-500.0,0.00029999,4]
[328850240,1717878647631,-500.0,0.00029999,4]
[328850241,1717878647641,-500.0,0.00029999,4]
[328850242,1717878647652,-500.0,0.00029999,4]
[328850243,1717878647662,-623.9408,0.00029999,4]
[328850244,1717878647671,-639.42820353,0.00029999,4]
[328850245,1717878647681,-500.0,0.00029999,4]
[328850246,1717878647691,-500.0,0.00029999,4]
[328850247,1717878647702,-36511.50835603,0.0003,13]
[328850248,1717878647716,-3710.89458996,0.0003,13]
[328850249,1717878647728,-14076.59999997,0.0003,13]
[328850250,1717878647739,-16125.44161697,0.0003,13]
[328850251,1717878647749,-250.00562901,0.0003,5]
[328850252,1717878647759,-8017.55275402,0.0003,2]
[328850253,1717878647771,-986.57230058,0.0003,2]
[328850254,1717878647783,-705.4,0.0003,2]
[328850255,1717878647795,-500.0,0.0003,2]
[328850256,1717878647807,-7051.0,0.0003,2]
[328850257,1717878647820,-18919.99999995,0.0003,2]
[328850258,1717878647886,-9012.96237076,0.0003,2]
[328850259,1717878647899,-3087.95762999,0.0003,2]
[328850260,1717878647913,-8899.37117706,0.0003,2]
[328850261,1717878647925,-4787.51253599,0.0003,2]
[328850262,1717878647937,-2831.76757743,0.0003,2]
[328850263,1717878845123,4000.0,0.000118,2]
[328850264,1717878845148,3149.77925347,0.000118,2]
[328850265,1717878870861,850.22074653,6.94e-05,2]
[328850266,1717878870886,236.3909937,6.94e-05,2]
[328850267,1717878952793,205.0,9.8e-05,2]
[328850268,1717879292566,3558.6090063,0.00013481,2]
[328850269,1717879292590,4000.0,0.00013481,2]
[328850270,1717879292613,2561.7531863,0.00013481,2]
[328850285,1717879622993,300.0,0.000135,4]
[328850288,1717879770111,1138.2468137,0.000135,2]
[328850292,1717879793433,-429.67014915,0.00013498,2]
[328850293,1717879793460,-2368.20157787,0.00013499,2]
[328850294,1717879793485,-1202.12827298,0.000135,2]
[328850295,1717879794097,-2909.07116185,0.000135,2]
[328850296,1717879794470,1090.92883815,0.00013498,2]
[328850297,1717879794686,-4000.0,0.00013498,2]
[328850298,1717879795302,-4000.0,0.00013498,2]
[328850299,1717879796008,-127.41204901,0.00013498,2]
[328850300,1717879796201,1261.28822006,0.00013498,2]
[328850301,1717879802257,553.46,0.00012256,2]
[328850303,1717879832726,-1418.66485082,0.00013555,2]
[328850304,1717879832739,-1456.8246363,0.00013555,2]
[328850305,1717879832749,-150.0,0.00013558,2]
[328850306,1717879832759,-150.0,0.00013558,2]
[328850307,1717879832769,-700.0,0.000136,4]
[328850308,1717879832779,-1100.0,0.000137,5]
[328850309,1717879832789,-1500.0,0.000138,5]
[328850310,1717879832799,-622.73,0.0001383,2]
[328850311,1717879832808,-150.0,0.00013863,2]
[328850312,1717879832818,-1900.0,0.000139,5]
[328850313,1717879832828,-270.50012981,0.000139,2]
[328850314,1717879832838,-176.1287082,0.000139,2]
[328850315,1717879832847,-616.92,0.0001399,2]
[328850316,1717879832856,-163.0,0.0001399,2]
[328850317,1717879832866,-499.99,0.0001399,2]
[328850318,1717879832876,-150.99,0.0001399,2]
[328850319,1717879832885,-163.8649349,0.0001399,2]
[328850320,1717879832895,-163.8649349,0.0001399,2]
[328850321,1717879832904,-152.83,0.0001399,2]
[328850322,1717879832914,-152.83,0.0001399,2]
[328850323,1717879832924,-152.83,0.0001399,2]
[328850324,1717879832934,-152.83,0.0001399,2]
[328850328,1717879833126,-8689.71006527,0.0001399,2]
[328850329,1717879833136,-1261.28822006,0.00013998,2]
[328850330,1717879833145,-2285.01619169,0.00013998,2]
[328850331,1717879833155,-429.53862842,0.00013998,2]
[328850332,1717879833165,-9218.34088716,0.00013998,2]
[328850333,1717879833174,-1000.0,0.00013999,2]
[328850334,1717879833184,-194.50842837,0.00013999,2]
[328850335,1717879833194,-274148.68311517,0.00014,2]
[328850336,1717879833445,-9211.1519398,0.00014,2]
[328850337,1717879838389,-18100.36802411,0.00014,2]
[328850338,1717879838607,-645.31201752,0.00014,2]
[328850339,1717879838733,-185268.75201811,0.00014,2]
[328850340,1717879838802,-2000.0,0.00014,2]
[328850345,1717879841853,-323.17969144,0.000139,2]
[328850346,1717879841864,-1411.3940294,0.00014,2]
[328850348,1717879843077,-309.30868225,0.00014,2]
[328850350,1717879843090,-2548.05439985,0.00014,2]
[328850446,1717879844401,-5925.66020814,0.00014,2]
[328850455,1717879844478,-397.00005046,0.00014,2]
[328850457,1717879844551,-3385.95,0.00014,2]
[328850458,1717879844776,-346.99751302,0.00013999,2]
[328850459,1717879844954,-1632.33669721,0.00013999,2]
[328850460,1717879844967,-896.15527689,0.00013999,2]
[328850461,1717879844977,-387.24538085,0.00014,2]
[328850462,1717879845015,-9707.48970218,0.00014,2]
[328850463,1717879845028,-4930.140382,0.00014,2]
[328850483,1717879846419,-337118.46855016,0.00014,2]
[328850484,1717879846514,-115340.46675123,0.00014,2]
[328850485,1717879846527,-322.95843647,0.00014,2]
[328850486,1717879846541,-112958.43289587,0.00014,2]
[328850487,1717879846553,-1118.02440501,0.00014,2]
[328850488,1717879846601,-1595.25934319,0.00014,2]
[328850489,1717879846692,-631.55097061,0.00014,2]
[328850490,1717879846706,-269.38241397,0.00014,2]
[328850491,1717879846718,-113890.81339782,0.00014,2]
[328850492,1717879846782,-5293.52073078,0.00014,2]
[328850493,1717879846871,-568.61884552,0.00014,2]
[328850494,1717879862107,2057.83973093,0.00012256,2]
[328850495,1717879862134,4000.0,0.00012256,2]
[328850496,1717879862159,4000.0,0.00012256,2]
[328850497,1717879862184,4000.0,0.00012256,2]
[328850498,1717879862209,4000.0,0.00012256,2]
[328850499,1717879862234,3074.76026907,0.00012256,2]
[328850503,1717879962553,925.23973093,0.00013455,2]
[328850504,1717879962580,4000.0,0.00013455,2]
[328850505,1717879962605,4000.0,0.00013455,2]
[328850506,1717879962631,4000.0,0.00013455,2]
[328850507,1717879962660,2524.99596907,0.00013455,2]
[328850511,1717880349430,544.78,0.00011695,2]
[328850512,1717880594291,1357.74,0.00012843,2]
[328850515,1717880712886,250.0,0.00012847,2]
[328850516,1717880745841,1000.0,0.00012851,2]
[328850517,1717880832588,150.0,0.00012854,2]
[328850518,1717880871538,200.0,0.00012859,2]
[328850519,1717880911947,517.54,0.00010944,2]
[328850521,1717881031924,-792.23613721,0.00013205,2]
[328850522,1717881031934,-74.52668949,0.00013207,2]
[328850523,1717881032218,-644.68788392,0.00013207,2]
[328850524,1717881032228,-9218.34088716,0.00013207,2]
[328850525,1717881032237,-517.54,0.00013208,2]
[328850526,1717881032247,-177.68,0.00013434,2]
[328850527,1717881032258,-150.0,0.00013441,2]
[328850528,1717881032269,-158.38,0.00013443,2]
[328850529,1717881032278,-168.98,0.0001345,2]
[328850530,1717881032288,-362.81476569,0.00013455,2]
[328850531,1717881032297,-158.38,0.00013497,2]
[328850532,1717881032308,-499.99,0.00013497,2]
[328850533,1717881032318,-299.99,0.00013551,2]
[328850534,1717881032327,-158.38,0.00013551,2]
[328850535,1717881032336,-250.0,0.00013559,2]
[328850536,1717881032346,-150.99,0.00013559,2]
[328850537,1717881032355,-5186.86,0.00013559,2]
[328850538,1717881032365,-158.38,0.00013605,2]
[328850539,1717881032375,-158.38,0.00013659,2]
[328850540,1717881032385,-311.36,0.00013699,2]
[328850541,1717881032395,-182.21,0.00013701,2]
[328850542,1717881032405,-158.38,0.00013713,2]
[328850543,1717881032414,-158.38,0.00013767,2]
[328850544,1717881032424,-158.38,0.00013821,2]
[328850545,1717881032434,-2641.98436638,0.00013859,2]
[328850546,1717881032445,-33627.97803897,0.0001386,2]
[328850547,1717881032456,-158.38,0.00013875,2]
[328850548,1717881032466,-413.35149323,0.00013879,2]
[328850549,1717881032476,-470.2,0.000139,2]
[328850550,1717881032485,-2219.40102824,0.000139,2]
[328850551,1717881032495,-3431.44714868,0.000139,2]
[328850552,1717881032505,-158.38,0.00013928,2]
[328850553,1717881032515,-341.38798736,0.00013936,2]
[328850554,1717881032525,-151.08762495,0.00013936,2]
[328850555,1717881032536,-158.38,0.00013982,2]
[328850556,1717881032547,-243.56484948,0.0001399,2]
[328850557,1717881032557,-152.55,0.0001399,2]
[328850558,1717881032567,-152.55,0.0001399,2]
[328850559,1717881032576,-152.55,0.0001399,2]
[328850560,1717881032586,-688.29645905,0.00013998,2]
[328850561,1717881032595,-282.76675085,0.00013998,2]
[328850562,1717881032606,-2770.12287754,0.00013998,2]
[328850563,1717881032615,-496.34923762,0.00013998,2]
[328850564,1717881032624,-542.00347646,0.00013998,2]
[328850565,1717881032634,-173.2641146,0.00013999,2]
[328850566,1717881032644,-747.56570633,0.00013999,2]
[328850567,1717881032655,-1218.39220414,0.00013999,2]
[328850568,1717881032666,-798135.91099414,0.00014,2]
[328850569,1717881032678,-5420.58701703,0.00014,2]
[328850570,1717881032691,-19816.53429697,0.00014,2]
[328850571,1717881032702,-5167.615,0.00014,2]
[328850572,1717881032714,-1038.33,0.00014,2]
[328850573,1717881032726,-408.85640308,0.00014,2]
[328850574,1717881032739,-3402.78701456,0.00014,2]
[328850575,1717881032751,-540.74550512,0.00014,2]
[328850576,1717881032763,-621.77146932,0.00014,2]
[328850577,1717881032775,-883.97785601,0.00014,2]
[328850578,1717881032787,-450.25,0.00014,2]
[328850579,1717881032798,-1332.51180414,0.00014,2]
[328850580,1717881032810,-5855.66818691,0.00014,2]
[328850581,1717881032821,-6659.40709401,0.00014,2]
[328850582,1717881032833,-32068.67997811,0.00014,2]
[328850583,1717881032844,-632.65598278,0.00014,2]
[328850584,1717881032855,-359.64506901,0.00014,2]
[328850585,1717881032962,-71.28693687,0.00014,2]
[328850586,1717881032974,-1240.78981057,0.00014,2]
[328850587,1717881032986,-654.68848801,0.00014,2]
[328850589,1717881038001,-11157.25219503,0.00014,2]
[328850590,1717881038017,-6032.35964031,0.00014,2]
[328850591,1717881038028,-1941.56591577,0.00014,2]
[328850592,1717881038040,-4343.464663,0.00014,2]
[328850593,1717881038053,-4292.0362155,0.00014,2]
[328850594,1717881038065,-9319.78366356,0.00014,2]
[328850595,1717881038078,-3389.96530916,0.00014,2]
[328850596,1717881038089,-1444.47767173,0.00014,2]
[328850597,1717881038211,-3206.36718444,0.00014,2]
[328850598,1717881038366,-500.0,0.00014,2]
[328850599,1717881038379,-1659.14005648,0.00014,2]
[328850600,1717881038390,-308.66866659,0.00014,2]
[328850605,1717881041758,-372.24136387,0.00014,2]
[328850606,1717881041771,-5139.73353367,0.00014,2]
[328850607,1717881041783,-522.809,0.00014,2]
[328850608,1717881041896,-568481.18207817,0.00014,2]
[328850609,1717881042009,-426.69999987,0.00014,2]
[328850610,1717881042021,-137508.16643514,0.00014,2]
[328850611,1717881042123,-311.62064007,0.00014,2]
[328850663,1717881045864,-1889.08592415,0.00014,2]
[328850664,1717881045946,-62636.95320417,0.00014,2]
[328850665,1717881045962,-3319.68879838,0.00014,2]